bitfinex/quotes_ETHUSD_20251021
["timestamp","ask_amount","ask_price","bid_price","bid_amount"]
[1761065797044,0.2177,4057.7,4054.9,0.0716239]
[1761065797343,0.2177,4055.0,4054.1,0.05686195]
[1761065797504,0.2177,4055.0,4051.0,3.505358]
[1761065797505,0.2177,4054.2,4051.0,3.505358]
[1761065797831,0.0308269,4054.9,4052.2,2.426143]
[1761065797832,0.4681269,4054.9,4052.2,2.426143]
[1761065798016,0.05,4054.7,4052.2,3.947744]
[1761065798211,0.03082766,4054.8,4052.4,3.920294]
[1761065798212,0.05,4054.8,4052.4,3.920294]
[1761065798527,0.05,4054.8,4052.1,0.2202]
[1761065798528,0.05,4054.6,4052.1,0.41913326]
[1761065798729,0.05,4054.6,4052.1,2.46783927]
[1761065798933,0.05,4054.6,4051.5,3.777]
[1761065798934,0.2177,4055.0,4052.2,0.24678393]
[1761065799231,0.2177,4055.0,4052.3,0.4687]
[1761065799232,0.1,4054.4,4052.3,0.4687]
[1761065799383,0.1,4054.4,4051.0,24.77803559]
[1761065799384,0.1,4054.5,4050.9,0.23143273]
[1761065799584,0.05,4054.7,4051.1,30.0]
[1761065799827,0.1,4054.5,4051.5,2.46822164]
[1761065799991,0.1,4054.3,4051.6,3.898]
[1761065800325,0.1,4054.1,4052.2,2.46777638]
[1761065800530,0.4373,4054.5,4051.7,0.3898]
[1761065800531,0.1,4054.4,4052.0,2.272153]
[1761065800698,0.1,4054.4,4047.1,0.09999999]
[1761065800900,0.1,4054.4,4050.1,0.5187]
[1761065800901,0.50688,4053.9,4050.1,0.5187]
[1761065801201,0.50688,4053.4,4050.2,2.171935]
[1761065801401,0.46813526,4053.8,4050.4,4.14241]
[1761065801402,0.50688,4053.0,4050.4,4.14241]
[1761065801629,0.05,4053.6,4050.4,2.044117]
[1761065801804,0.4373,4054.6,4051.0,25.166407]
[1761065802014,0.1,4054.9,4051.6,1.728]
[1761065802210,2.4663961,4054.5,4051.9,1.728]
[1761065802410,0.1,4054.7,4052.3,1.728]
[1761065802609,0.1,4054.9,4052.5,1.728]
[1761065802809,0.1,4054.9,4053.7,2.46687616]
[1761065803155,0.1,4054.9,4052.6,1.728]
[1761065803156,0.05,4055.4,4053.8,3.921]
[1761065803301,0.1,4055.5,4053.9,4.3131]
[1761065803501,0.1,4055.5,4053.9,0.3921]
[1761065803709,0.2177,4056.0,4054.1,2.46663871]
[1761065803917,0.2177,4056.0,4054.2,3.918]
[1761065803918,0.05,4055.9,4054.2,3.918]
[1761065804119,0.1,4056.4,4054.3,7.259954]
[1761065804319,0.1,4056.4,4054.4,1.1646654]
[1761065804506,2.46546533,4056.1,4054.5,3.916]
[1761065804831,0.1,4055.9,4054.5,3.916]
[1761065805040,0.1,4055.9,4054.6,0.1734]
[1761065805243,0.1,4055.9,4053.7,1.664]
[1761065805244,0.46812006,4055.8,4053.4,0.1734]
[1761065805447,0.1,4055.7,4053.5,3.915]
[1761065805678,0.1,4055.1,4053.5,4.32384]
[1761065805813,0.4373,4055.0,4052.7,0.2202]
[1761065806002,2.4664479,4054.5,4052.7,0.2202]
[1761065806204,2.4664479,4054.5,4051.7,1.665]
[1761065806205,2.46651703,4054.3,4052.0,0.2202]
[1761065806508,0.1,4053.4,4051.7,1.665]
[1761065806833,0.2177,4051.8,4051.4,0.002]
[1761065807069,2.46822164,4051.5,4051.4,0.002]
[1761065807290,3.54325441,4051.5,4051.4,0.002]
[1761065807573,0.5373,4051.5,4051.4,0.002]
[1761065807714,0.2177,4051.8,4051.4,0.002]
[1761065808059,2.72385048,4053.3,4051.4,0.002]
[1761065808060,0.1,4052.2,4051.4,0.002]
[1761065808368,0.4373,4051.6,4051.4,0.002]
[1761065808557,0.4373,4051.5,4051.4,0.002]
[1761065808711,5.23740164,4051.5,4051.4,0.002]
[1761065808912,0.097,4051.2,4047.1,19.15519329]
[1761065809225,0.097,4051.2,4046.2,0.05]
[1761065809226,6.397956,4050.8,4047.3,3.938]
[1761065809447,0.50688,4050.4,4047.4,2.984764]
[1761065809645,0.097,4049.9,4047.3,3.938]
[1761065809846,0.50688,4050.9,4047.5,24.781193]
[1761065810046,0.50688,4050.9,4049.2,2.46962167]
[1761065810265,4.19584503,4052.2,4049.3,3.935]
[1761065810266,2.46816072,4051.6,4049.3,3.935]
[1761065810575,0.097,4051.6,4048.6,30.0]
[1761065810801,0.4373,4051.7,4048.8,2.990133]
[1761065811098,0.2177,4052.3,4048.7,4.6269]
[1761065811099,0.72783101,4051.6,4049.0,2.984208]
[1761065811237,2.46863099,4050.9,4049.1,3.947]
[1761065811437,0.097,4050.9,4048.7,0.2202]
[1761065811752,2.46736126,4053.0,4046.5,0.80649817]
[1761065811753,0.50688,4050.1,4047.5,3.609]
[1761065812062,0.50688,4050.1,4046.5,0.80649817]
[1761065812063,0.097,4049.8,4046.8,5.2321]
[1761065812263,0.655,4050.7,4047.2,9.288751]
[1761065812476,19.59249329,4052.1,4047.5,1.728]
[1761065812676,0.097,4052.1,4048.2,30.0]
[1761065812883,0.2177,4052.9,4050.2,2.46899939]
[1761065813048,0.2177,4052.9,4049.1,1.728]
[1761065813049,0.2177,4052.9,4050.4,4.571377]
[1761065813382,0.2177,4052.9,4050.3,4.76869994]
[1761065813383,0.4373,4053.1,4050.5,3.961]
[1761065813588,0.2177,4053.2,4050.6,3.049733]
[1761065813749,2.68419901,4054.4,4050.8,20.952957]
[1761065813959,2.68419901,4054.4,4051.0,2.371315]
[1761065813960,0.38687393,4053.5,4051.0,2.371315]
[1761065814260,0.4422,4054.1,4051.4,4.27498]
[1761065814461,2.68415695,4054.4,4052.3,2.46767958]
[1761065814660,2.68415695,4054.4,4051.5,0.4389]
[1761065814661,0.2177,4054.4,4052.4,3.962]
[1761065814852,0.2348,4055.0,4052.7,2.46745443]
[1761065815051,0.2348,4055.0,4052.6,7.260633]
[1761065815258,0.2348,4055.0,4052.8,5.737473]
[1761065815457,0.2348,4055.0,4053.2,2.46718595]
[1761065815638,0.2074,4055.4,4053.4,7.1506]
[1761065815840,0.2074,4055.4,4053.6,5.014839]
[1761065816045,0.2348,4055.3,4053.6,2.46694296]
[1761065816339,2.46418803,4058.2,4053.5,3.96]
[1761065816340,0.2074,4055.9,4053.7,1.2569943]
[1761065816540,0.2074,4055.9,4054.4,2.46645449]
[1761065816745,0.4422,4056.1,4053.9,2.46672487]
[1761065816965,0.2074,4056.3,4053.9,4.368078]
[1761065817168,0.4398,4056.6,4054.2,2.46657786]
[1761065817367,2.46426516,4058.1,4053.8,2.46681236]
[1761065817368,0.87753978,4059.6,4055.1,3.221363]
[1761065817590,0.2198,4057.8,4055.3,3.958814]
[1761065817792,0.4331,4058.0,4055.2,3.949]
[1761065817965,0.431,4058.8,4055.3,0.4389]
[1761065818171,0.431,4058.8,4055.4,25.808022]
[1761065818489,2.4638431,4058.7,4056.6,2.46510379]
[1761065818693,19.15519329,4060.1,4055.5,4.19643489]
[1761065818694,0.431,4060.0,4056.9,2.46493628]
[1761065818888,2.46262959,4060.7,4057.0,3.952]
[1761065819193,2.46330699,4059.6,4057.1,3.952]
[1761065819392,2.46410278,4058.3,4056.3,2.90419985]
[1761065819698,2.46353961,4059.2,4056.4,4.3929]
[1761065819988,2.4639038,4058.6,4055.6,0.2202]
[1761065820194,2.46402523,4058.4,4055.6,3.951]
[1761065820398,0.50688,4057.5,4054.9,0.2202]
[1761065820723,0.50688,4057.5,4053.7,0.1754]
[1761065820724,0.50688,4057.3,4053.9,0.622]
[1761065820895,20.88319329,4057.4,4053.9,0.622]
[1761065820896,2.46597442,4055.2,4053.9,0.622]
[1761065821066,0.50688,4056.4,4053.7,0.6143]
[1761065821280,0.50688,4056.4,4048.4,15.0]
[1761065821281,2.23488,4055.7,4053.0,0.4389]
[1761065821481,2.46651703,4054.3,4054.2,0.1232]
[1761065821656,2.465848,4055.4,4053.0,0.4389]
[1761065821857,0.1232,4054.7,4054.0,0.1232]
[1761065822077,0.50688,4056.1,4053.1,3.968]
[1761065822279,0.4397,4056.5,4053.3,3.89781]
[1761065822477,0.4397,4056.4,4053.7,2.46687327]
[1761065822679,0.4397,4056.4,4053.3,0.4389]
[1761065823012,2.46609445,4055.0,4053.3,0.4389]
[1761065823213,4.19336166,4056.2,4051.2,0.05]
[1761065823214,19.15519329,4055.8,4051.2,0.05]
[1761065823414,31.090388,4054.9,4049.3,2.51955855]
[1761065823578,31.090388,4054.9,4048.9,0.2202]
[1761065823579,0.2299,4052.4,4050.0,1.515]
[1761065823785,2.69763118,4052.4,4050.1,0.1754]
[1761065823978,0.6306,4052.4,4050.2,5.608014]
[1761065824192,0.2316,4052.9,4050.4,7.665914]
[1761065824412,0.2316,4052.9,4050.4,3.218248]
[1761065824621,0.2316,4052.9,4050.5,0.4389]
[1761065824922,0.2316,4052.9,4050.8,2.46864816]
[1761065825226,0.2316,4052.9,4050.2,3.994]
[1761065825227,0.50688,4052.7,4050.2,3.994]
[1761065825408,0.50688,4052.5,4050.3,3.998]
[1761065825609,0.50688,4052.5,4048.9,2.68997506]
[1761065825610,0.50688,4052.2,4049.0,3.335315]
[1761065825801,0.50688,4052.0,4048.9,0.6591]
[1761065826122,0.50688,4052.2,4048.9,0.6591]
[1761065826429,1.728,4051.8,4049.2,2.46961882]
[1761065826630,1.728,4051.8,4049.3,0.64636188]
[1761065826788,0.50688,4051.5,4049.3,3.993]
[1761065826987,0.50688,4051.3,4049.3,3.993]
[1761065827188,0.50688,4051.3,4048.4,0.4389]
[1761065827189,2.46886101,4050.5,4048.4,0.4389]
[1761065827385,0.399,4051.2,4047.6,0.0921]
[1761065827386,2.23488,4050.9,4047.6,0.0921]
[1761065827627,0.50688,4050.7,4047.7,0.328]
[1761065827824,1.17394211,4050.8,4047.8,3.422686]
[1761065828124,0.4399,4050.9,4049.1,2.46967424]
[1761065828287,0.4399,4050.9,4049.2,3.99]
[1761065828288,2.90852263,4050.9,4049.2,3.99]
[1761065828487,2.90852263,4050.9,4047.4,0.002]
[1761065828488,3.603855,4050.7,4047.4,0.002]
[1761065828691,0.50688,4050.3,4047.4,0.002]
[1761065828894,0.50688,4050.5,4047.6,2.460578]
[1761065829091,2.088675,4050.2,4047.4,0.002]
[1761065829328,0.4399,4050.1,4047.4,0.002]
[1761065829631,0.4399,4050.1,4047.5,4.733765]
[1761065829932,2.1679,4050.1,4047.6,2.47059986]
[1761065830231,2.1679,4050.1,4047.7,5.935296]
[1761065830232,0.4399,4050.1,4047.7,5.935296]
[1761065830526,0.4399,4050.1,4047.9,2.278151]
[1761065830701,2.9090115,4050.1,4047.8,0.7853196]
[1761065831022,0.4399,4050.0,4047.5,2.032733]
[1761065831233,0.4399,4050.0,4047.4,0.002]
[1761065831234,0.4399,4050.0,4047.8,2.47047779]
[1761065831400,0.2131,4051.1,4047.8,2.47047779]
[1761065831401,0.4399,4050.9,4048.7,2.46991446]
[1761065831601,0.4399,4050.9,4047.5,2.47064721]
[1761065831602,0.4399,4050.9,4048.8,3.985]
[1761065831838,0.4399,4050.8,4047.4,0.002]
[1761065832047,0.1232,4048.9,4048.3,0.1232]
[1761065832343,0.2175,4047.5,4047.4,0.002]
[1761065832642,0.4379,4048.8,4047.4,0.002]
[1761065832944,1.11213978,4050.0,4047.4,0.002]
[1761065832945,0.2348,4049.3,4047.4,0.002]
[1761065833117,0.2348,4049.3,4047.5,5.184637]
[1761065833301,0.2348,4049.3,4047.4,2.91158819]
[1761065833302,0.2348,4049.3,4047.6,0.80962252]
[1761065833642,0.2131,4051.1,4047.4,0.4409]
[1761065833643,0.4207,4050.8,4047.9,2.47041675]
[1761065833940,0.4207,4050.8,4048.2,30.0]
[1761065834127,0.4207,4050.8,4048.3,1.728]
[1761065834449,0.4207,4050.8,4049.3,2.46955567]
[1761065834749,0.4205,4050.7,4048.2,4.131]
[1761065835041,0.4205,4050.7,4048.4,2.736777]
[1761065835226,0.4205,4050.7,4048.4,2.243837]
[1761065835544,0.4205,4050.7,4048.9,5.499025]
[1761065835771,0.2131,4051.1,4048.8,0.003]
[1761065835943,0.2131,4051.1,4049.1,3.216173]
[1761065836103,0.2131,4051.1,4048.8,0.003]
[1761065836302,2.68500661,4048.9,4048.8,0.003]
[1761065836539,4.91988661,4048.9,4048.8,0.003]
[1761065836724,5.35978661,4048.9,4048.8,0.003]
[1761065836926,2.23488,4048.8,4046.5,0.80649817]
[1761065837135,0.50688,4048.4,4046.5,0.80649817]
[1761065837318,0.50688,4047.8,4046.5,0.80649817]
[1761065837746,0.4369,4047.7,4046.5,0.80649817]
[1761065839227,0.4369,4047.6,4046.5,0.80649817]
[1761065839411,2.47007199,4048.5,4046.5,0.80649817]
[1761065839619,0.4198072,4048.4,4046.5,0.80649817]
[1761065839818,0.4369,4048.8,4046.5,0.80649817]
[1761065840059,0.50688,4048.6,4046.5,0.80649817]
[1761065840232,0.50688,4048.4,4046.5,0.80649817]
[1761065840558,0.4369,4048.7,4046.5,0.80649817]
[1761065840777,0.4369,4048.7,4046.5,1.25919817]
[1761065840955,0.4369,4048.7,4046.8,0.1754]
[1761065841158,0.4369,4048.7,4046.9,2.47099001]
[1761065841472,0.64385282,4050.6,4046.8,0.1754]
[1761065841473,0.4577,4050.5,4047.6,4.25496]
[1761065841774,0.4577,4050.5,4047.8,15.140874]
[1761065841926,0.4577,4050.5,4047.7,3.39416299]
[1761065842129,0.4577,4050.5,4047.8,0.4527]
[1761065842384,0.6708,4051.1,4048.0,5.695177]
[1761065842667,0.6708,4051.1,4048.0,12.413963]
[1761065842840,0.6708,4051.1,4048.7,2.46992819]
[1761065843039,0.6708,4051.1,4048.1,3.8904663]
[1761065843040,0.2131,4051.1,4048.1,2.1624663]
[1761065843225,1.872,4052.0,4049.0,2.46972803]
[1761065843226,0.4577,4051.3,4049.0,2.46972803]
[1761065843422,0.4577,4051.3,4047.6,2.4705449]
[1761065843423,0.03085505,4051.2,4048.0,0.4527]
[1761065843727,0.50688,4051.1,4048.4,2.47008247]
[1761065843928,0.4565,4051.1,4048.3,5.742008]
[1761065844167,0.4565,4051.1,4049.3,2.46954958]
[1761065844371,0.4565,4051.1,4049.4,0.2202]
[1761065844556,0.4565,4051.7,4049.4,0.2202]
[1761065844751,0.2326,4052.9,4049.6,2.476]
[1761065844925,0.001,4052.9,4049.9,15.358175]
[1761065845125,0.001,4052.9,4050.2,1.728]
[1761065845330,0.001,4052.9,4050.6,2.46875447]
[1761065845648,0.001,4052.9,4051.2,2.46835152]
[1761065845859,0.001,4052.9,4051.3,2.56042742]
[1761065846051,0.001,4052.9,4051.5,2.4681635]
[1761065846544,0.001,4052.9,4051.4,0.4405]
[1761065846762,0.001,4052.9,4051.3,0.0921]
[1761065847125,0.001,4052.9,4050.2,2.46898546]
[1761065847126,0.4607,4052.8,4050.6,0.4405]
[1761065847273,0.001,4052.9,4051.4,4.576453]
[1761065847478,0.001,4052.9,4052.8,0.1754]
[1761065847715,0.001,4052.9,4052.8,4.8199]
[1761065847919,0.001,4052.9,4052.8,4.3794]
[1761065848215,0.001,4052.9,4052.2,0.4405]
[1761065848372,0.001,4052.9,4052.3,4.6445]
[1761065848579,0.001,4052.9,4052.4,0.72876732]
[1761065848775,0.001,4052.9,4052.8,4.85970592]
[1761065848972,2.46697448,4055.2,4052.5,0.4405]
[1761065848973,0.001,4055.2,4052.9,3.450232]
[1761065849173,0.001,4055.2,4053.4,2.7625]
[1761065849387,0.001,4055.2,4053.9,2.46675618]
[1761065849588,0.001,4055.2,4054.0,0.4405]
[1761065849806,0.001,4055.2,4054.2,5.436092]
[1761065849981,0.001,4055.2,4054.0,0.4405]
[1761065850199,0.001,4055.2,4054.1,4.2]
[1761065850400,0.001,4055.2,4054.5,6.219144]
[1761065850584,0.001,4055.2,4054.2,1.1512258]
[1761065850845,0.001,4055.2,4054.2,0.4405]
[1761065851160,0.001,4055.2,4054.3,4.195]
[1761065851313,0.001,4055.2,4054.9,2.46612601]
[1761065851660,0.001,4055.2,4054.4,2.1229]
[1761065851661,0.001,4055.2,4055.0,0.4405]
[1761065851957,0.001,4055.2,4054.4,0.4405]
[1761065852465,0.001,4055.2,4054.6,2.41296]
[1761065852609,0.001,4055.2,4054.7,4.45050194]
[1761065852807,0.001,4055.2,4054.8,0.4405]
[1761065853055,0.001,4055.2,4054.9,4.184]
[1761065853210,0.001,4055.2,4054.2,2.46656937]
[1761065853564,0.001,4055.2,4054.4,2.46644714]
[1761065853757,0.001,4055.2,4054.3,4.179]
[1761065853907,0.001,4055.2,4054.3,4.0286]
[1761065854241,0.001,4055.2,4054.3,4.4691]
[1761065854442,0.001,4055.2,4054.2,0.4405]
[1761065854759,0.001,4055.2,4053.1,5.532537]
[1761065854964,0.001,4055.2,4054.2,2.46655218]
[1761065855161,0.001,4055.2,4053.4,15.462309]
[1761065855370,0.001,4055.2,4053.6,2.46694296]
[1761065855645,0.001,4055.2,4054.0,30.0]
[1761065855820,0.001,4055.2,4054.3,2.92212]
[1761065856020,0.001,4055.2,4055.1,2.66383043]
[1761065856232,0.001,4055.2,4055.1,0.1978]
[1761065856419,0.001,4055.2,4053.7,4.19482249]
[1761065856420,0.001,4055.2,4054.3,4.17]
[1761065857032,0.001,4055.2,4054.3,6.63650438]
[1761065857220,0.001,4055.2,4054.5,4.986197]
[1761065857422,0.001,4055.2,4054.6,3.86649541]
[1761065857652,0.001,4055.2,4054.7,3.879937]
[1761065857956,0.001,4055.2,4054.8,3.11774]
[1761065858118,0.001,4055.2,4054.8,0.4405]
[1761065858456,0.001,4055.2,4054.9,4.6005]
[1761065858662,0.001,4055.2,4055.0,4.157]
[1761065859013,0.001,4055.2,4054.3,2.46646486]
[1761065859335,0.64295254,4059.4,4056.3,3.31895737]
[1761065859559,5.27056263,4060.8,4056.0,0.50688]
[1761065859560,0.4584,4059.6,4056.6,29.332503]
[1761065859838,0.4584,4059.6,4056.5,9.089595]
[1761065859839,0.38639718,4058.8,4056.5,9.089595]
[1761065860016,0.03079803,4058.7,4056.6,4.32666527]
[1761065860209,0.4584,4059.0,4056.7,8.708143]
[1761065860408,0.4584,4059.0,4056.8,9.008255]
[1761065860717,0.03079652,4058.9,4056.8,0.4405]
[1761065861122,0.50688,4058.5,4056.1,0.1449]
[1761065861444,2.46486366,4057.1,4055.6,0.1449]
[1761065861646,2.46411729,4058.3,4054.4,0.2458]
[1761065861647,0.27729731,4057.0,4054.4,0.4405]
[1761065861860,0.03081094,4057.0,4054.4,0.4405]
[1761065862007,0.92718,4056.9,4054.3,0.002]
[1761065862209,2.46511857,4056.6,4054.3,0.002]
[1761065862413,2.46603043,4055.1,4054.3,0.002]
[1761065862757,2.46639536,4054.5,4054.3,0.002]
[1761065862939,2.72418689,4054.4,4054.3,0.002]
[1761065863142,3.64946689,4054.4,4054.3,0.002]
[1761065863348,0.50688,4053.9,4050.3,0.1978]
[1761065863636,2.46848209,4051.1,4050.4,20.349443]
[1761065863838,0.50688,4052.2,4050.0,0.534]
[1761065864055,2.46806176,4051.8,4050.0,0.534]
[1761065864211,0.4164,4051.7,4050.0,0.534]
[1761065864858,2.46819514,4051.6,4050.0,0.534]
[1761065865058,0.4164,4051.7,4050.0,0.534]
[1761065865354,0.4164,4051.7,4049.2,0.4405]
[1761065865355,0.030852,4051.6,4049.2,0.4405]
[1761065865518,2.88451157,4051.7,4049.4,3.303]
[1761065865716,0.86759292,4054.4,4049.5,12.2416]
[1761065865936,0.50688,4053.5,4049.8,2.46923335]
[1761065866136,0.50688,4053.4,4050.3,2.46891243]
[1761065866473,0.50688,4053.4,4049.7,1.728]
[1761065866474,1.728,4053.3,4050.5,2.271732]
[1761065866648,0.50688,4053.2,4050.9,2.46858598]
[1761065866850,1.728,4053.3,4050.5,2.90932036]
[1761065867175,0.4164,4053.4,4050.6,7.438165]
[1761065867481,0.4164,4053.4,4051.2,2.4683573]
[1761065867768,0.4164,4053.4,4051.3,0.24683573]
[1761065867971,2.88349068,4053.4,4051.4,2.46827008]
[1761065868177,4.52838,4053.3,4050.4,0.24689124]
[1761065868479,4.52838,4053.3,4049.0,2.46972134]
[1761065868480,0.50688,4052.8,4049.0,2.46972134]
[1761065868772,1.728,4052.9,4048.6,0.4405]
[1761065868773,0.50688,4051.3,4048.6,0.4405]
[1761065868945,1.728,4051.4,4048.2,0.1449]
[1761065869151,0.4164,4052.8,4048.2,0.1449]
[1761065869152,3.30438311,4051.3,4048.3,1.531]
[1761065869360,0.50688,4050.9,4048.3,1.531]
[1761065869561,2.46881251,4050.6,4048.3,1.531]
[1761065869747,2.46881251,4050.6,4048.2,0.5854]
[1761065869748,2.46879775,4050.6,4048.2,0.5854]
[1761065869972,0.92328,4051.0,4048.2,0.5854]
[1761065869973,0.6457,4050.5,4048.2,4.7374]
[1761065870275,0.6457,4050.5,4048.3,0.47374]
[1761065870487,0.44726114,4050.4,4048.3,0.47374]
[1761065870642,0.50688,4050.3,4047.6,1.289]
[1761065870957,0.50688,4050.1,4046.4,0.1774]
[1761065871141,2.47001938,4048.6,4046.4,2.64872734]
[1761065871480,0.50688,4048.4,4046.6,0.38957255]
[1761065871683,2.47010457,4048.5,4046.4,0.1774]
[1761065871889,0.50688,4048.6,4046.4,0.1774]
[1761065872175,0.44687563,4048.5,4046.4,0.1774]
[1761065872376,2.47034836,4048.1,4046.4,0.1774]
[1761065872676,0.416,4048.5,4046.6,4.14]
[1761065872876,2.47069493,4047.5,4045.9,4.138]
[1761065873068,0.03088402,4047.4,4047.0,0.1232]
[1761065873263,0.1232,4047.4,4045.8,4.137]
[1761065873466,0.50688,4047.3,4046.5,0.92969817]
[1761065873667,0.218,4046.6,4046.5,0.80649817]
[1761065873977,0.1232,4046.6,4046.5,0.80649817]
[1761065874141,0.1232,4047.1,4046.5,0.80649817]
[1761065874343,0.1232,4047.1,4046.5,0.92969817]
[1761065874544,0.436,4048.0,4045.4,4.806076]
[1761065874741,0.1232,4048.0,4047.5,0.1232]
[1761065874962,0.5645,4048.3,4047.5,0.1232]
[1761065875178,0.5645,4048.3,4045.3,0.08389817]
[1761065875179,0.4413,4048.9,4045.3,0.08389817]
[1761065875377,0.50688,4048.5,4045.5,2.335418]
[1761065875584,0.50688,4048.1,4045.4,0.4431]
[1761065875737,0.53775639,4048.4,4045.5,2.47188233]
[1761065875738,0.50688,4048.4,4045.5,2.47188233]
[1761065875938,0.50688,4048.2,4045.7,2.47176014]
[1761065876175,0.50688,4047.7,4045.6,0.71218805]
[1761065876479,0.4413,4048.3,4045.6,0.71218805]
[1761065876480,1.728,4047.9,4045.6,0.71218805]
[1761065876643,2.90871955,4047.9,4045.6,3.18398728]
[1761065876846,2.47053417,4047.8,4045.7,2.47176014]
[1761065877044,0.4383,4047.9,4046.1,2.47148612]
[1761065877246,0.218,4049.0,4045.9,3.217159]
[1761065877445,5.555762,4048.9,4045.9,0.4431]
[1761065877653,2.842906,4048.9,4046.0,4.112]
[1761065877940,2.842906,4048.9,4045.3,0.08389817]
[1761065877941,0.50688,4048.9,4045.3,0.08389817]
[1761065878148,0.49225897,4048.8,4045.8,7.242516]
[1761065878343,2.47023368,4048.2,4045.5,0.4431]
[1761065878676,0.50688,4048.5,4045.3,0.08389817]
[1761065878846,0.50688,4048.2,4045.9,2.47162883]
[1761065879042,0.53775792,4048.2,4045.3,0.08389817]
[1761065879260,0.50688,4048.0,4045.4,4.104]
[1761065879447,0.50688,4047.8,4045.5,0.46309982]
[1761065879647,2.47059986,4047.6,4045.5,0.46309982]
[1761065879842,2.47059986,4047.6,4045.3,0.52699817]
[1761065879843,2.47100606,4047.0,4046.1,0.002]
[1761065880052,0.03088326,4047.5,4046.1,0.002]
[1761065880266,0.4413,4048.5,4046.1,0.4451]
[1761065880773,0.4413,4048.5,4046.2,3.659]
[1761065880986,0.218,4049.0,4046.4,11.218187]
[1761065881185,0.63623898,4051.7,4046.3,0.3661]
[1761065881186,0.218,4049.8,4046.6,12.09550654]
[1761065881407,0.4413,4050.4,4046.9,4.1990272]
[1761065881605,0.38725299,4050.9,4047.2,13.715875]
[1761065881809,2.46870911,4050.7,4047.5,13.384112]
[1761065882114,1.728,4050.5,4047.6,1.3384112]
[1761065882291,2.46889196,4050.4,4047.7,3.60776]
[1761065882493,0.4413,4050.4,4047.8,2.8]
[1761065882667,2.46864664,4050.9,4048.0,2.47030118]
[1761065882865,2.468589,4050.9,4047.9,6.56737873]
[1761065883106,0.218,4051.1,4048.4,11.940476]
[1761065883407,0.4413,4051.7,4048.9,4.19775727]
[1761065883567,0.4413,4051.7,4048.5,1.61386487]
[1761065883568,0.4413,4051.7,4049.0,5.763]
[1761065883769,2.46780448,4052.2,4049.1,1.728]
[1761065883969,2.46780448,4052.2,4049.1,2.1711]
[1761065883970,0.4413,4052.2,4049.1,2.1711]
[1761065884278,0.4413,4052.1,4049.2,0.4431]
[1761065884508,0.4413,4052.8,4049.3,0.79341]
[1761065884669,2.46768015,4052.4,4049.6,2.46937969]
[1761065884869,0.218,4052.7,4050.0,2.4691358]
[1761065885202,0.218,4052.7,4052.1,0.1232]
[1761065885375,0.218,4052.7,4049.7,0.4431]
[1761065885376,0.218,4053.3,4051.4,4.089]
[1761065885702,0.1232,4053.2,4052.6,0.1232]
[1761065885905,0.1232,4053.2,4051.5,4.5281]
[1761065885906,0.001,4053.4,4052.9,0.1232]
[1761065886069,0.001,4053.4,4052.2,0.1714]
[1761065886265,0.001,4053.4,4053.3,0.1232]
[1761065886671,0.001,4053.4,4052.4,3.451]
[1761065886969,0.001,4053.4,4052.5,0.40655]
[1761065887169,0.001,4053.4,4052.5,2.87410556]
[1761065887377,0.001,4053.4,4052.5,0.84965]
[1761065887579,0.001,4053.4,4052.6,4.463838]
[1761065887763,0.001,4053.4,4053.0,2.46728791]
[1761065887992,0.001,4053.4,4053.0,0.49347787]
[1761065888192,0.001,4053.4,4053.1,0.4431]
[1761065888420,0.001,4053.4,4053.1,2.91034522]
[1761065888628,0.001,4053.4,4053.1,0.4431]
[1761065888834,0.001,4053.4,4053.2,0.4431]
[1761065891359,0.001,4053.4,4052.5,4.053]
[1761065891713,0.001,4053.4,4051.8,0.0839]
[1761065891913,2.4671922,4053.2,4051.8,0.0839]
[1761065892177,2.46761167,4052.6,4051.3,0.4431]
[1761065892350,0.47214059,4053.1,4051.6,4.047]
[1761065892512,0.001,4053.4,4051.6,4.4517]
[1761065892712,0.001,4053.4,4051.8,6.5367]
[1761065892928,0.001,4053.4,4052.1,2.46779894]
[1761065893128,0.001,4053.4,4053.0,2.46730765]
[1761065893340,0.001,4053.4,4052.2,0.4431]
[1761065893738,0.001,4053.4,4052.6,2.559332]
[1761065893941,0.001,4053.4,4052.7,0.4431]
[1761065894318,0.001,4053.4,4052.8,6.317523]
[1761065894648,0.001,4053.4,4053.1,2.46721565]
[1761065895016,0.001,4053.4,4053.2,4.042]
[1761065895349,0.001,4053.4,4053.3,15.32634012]
[1761065895559,0.001,4053.4,4053.3,15.76944012]
[1761065895755,0.001,4053.4,4053.3,9.96740712]
[1761065895976,0.001,4053.4,4053.3,9.20095712]
[1761065896180,0.001,4053.4,4053.3,11.07273812]
[1761065896880,0.001,4053.4,4053.3,11.19593812]
[1761065897588,0.001,4053.4,4053.3,3.72865712]
[1761065897881,0.001,4053.4,4053.3,1.26153157]
[1761065898043,0.001,4053.4,4053.3,4.5873]
[1761065898239,0.001,4053.4,4053.3,9.25105155]
[1761065898439,0.001,4053.4,4053.3,4.5873]
[1761065898639,0.001,4053.4,4053.3,4.1442]
[1761065898837,0.001,4053.4,4053.0,0.1479]
[1761065899037,0.001,4053.4,4053.1,4.014]
[1761065899475,0.001,4053.4,4053.3,11.27973]
[1761065899654,0.001,4053.4,4053.2,0.4706]
[1761065899655,0.001,4053.4,4053.1,4.43019]
[1761065899854,0.001,4053.4,4053.3,14.173549]